[Event "Chinese League Div-A Rapid 2022"]
[Site "Fuling,Chongqing"]
[Date "2022.09.11"]
[Round "5.28"]
[White "Xiao, Tong"]
[Black "Peng, Xiongjian"]
[Result "1/2-1/2"]
[ECO "C90"]
[WhiteElo "2027"]
[BlackElo "2454"]
[Annotator "TA"]
[PlyCount "153"]
[EventDate "2022.09.07"]
[EventType "team-tourn"]
[EventCountry "CHN"]
[SourceTitle "playchess.com"]
[Source "ChessBase"]
[SourceQuality "1"]
[TimeControl "1500+10"]

{[%evp 17,153,-11,0,0,0,-14,0,-12,-10,-4,0,-5,3,0,0,0,0,0,0,-46,-39,-61,-31,-40,-37,-51,-28,-33,-29,-25,0,0,28,-14,-19,-33,-30,-29,115,96,173,33,46,0,84,72,79,74,66,8,47,50,45,54,98,90,89,22,23,21,34,32,36,30,37,21,17,8,11,0,3,10,11,0,2,1,8,8,46,0,0,0,0,-12,0,0,0,-62,-45,-51,-52,-174,-174,-202,-196,-250,-237,-276,-255,-310,-300,-297,-310,-306,-306,-296,-292,-316,-315,-248,0,0,0,0,0,0,0,0,0,0,0,0,0,0,0,0,0,0,0,0,0,0,0,0,0,0,0,0]} 1. e4 {[%emt 0:00:03]} e5 {[%emt 0:00:02]} 2. Nf3 {[%emt 0:00:02]} Nc6 {[%emt 0:00:02]} 3. Bb5 {[%emt 0:00:05]} Nf6 {[%emt 0:00:02]} 4. d3 {[%emt 0:00:02]} d6 {[%emt 0:00:02]} 5. O-O {[%emt 0:00:10]} a6 {[%emt 0:00:55]} 6. Ba4 {[%emt 0:00:10]} b5 {[%emt 0:00:20]} 7. Bb3 {[%emt 0:00:01]} Na5 {[%emt 0:00:02]} 8. h3 {[%emt 0:00:04]} Be7 {[%emt 0:00:26]} 9. Re1 {[%emt 0:00:27]} O-O $1 {[%emt 0:00:19] The main line 9...0-0 scores better than 9...Nxb3.} 10. Nbd2 {[%emt 0:00:05] C90: Closed Ruy Lopez with 7...d6: Early deviations.} Re8 {[%emt 0:00:41]} 11. Nf1 {[%emt 0:00:24]} Bf8 {[%emt 0:00:18]} 12. Bg5 {[%emt 0:00:09]} Nxb3 {[%emt 0:00:07]} 13. axb3 {[%emt 0:00:03]} h6 {[%emt 0:00:12]} 14. Bh4 {[%emt 0:00:03] [#]} g6 $146 {[%emt 0:01:27]} ({Predecessor:} 14... a5 15. c3 Be7 16. b4 a4 17. d4 Bb7 18. Qe2 g5 19. Bg3 Qd7 20. N1d2 exd4 21. Nxd4 {1-0 (37) Faber,H (2504)-Skowronek,J (2277) Remote email 2013}) 15. Ne3 {[%emt 0:00:31]} Bg7 {[%emt 0:00:03]} 16. Qd2 {[%emt 0:01:01]} c6 {[%emt 0:01:17]} 17. c4 {[%emt 0:01:37]} Be6 {[%emt 0:01:15]} 18. g4 {[%emt 0:01:07]} (18. Ra5 $11) 18... Qd7 $15 {[%emt 0:01:10]} 19. Kh2 {[%emt 0:00:18]} Nh7 {[%emt 0:01:42]} 20. d4 {[%emt 0:01:21]} exd4 {[%emt 0:01:01]} 21. Nxd4 {[%emt 0:00:02][%cal Od4f5]} Ng5 {[%emt 0:00:11]} 22. Bxg5 {[%emt 0:03:16]} hxg5 {[%emt 0:00:02]} 23. Nf3 {[%emt 0:00:06]} Qe7 {[%emt 0:00:24]} 24. Kg2 {[%emt 0:00:14][%cal Oe3f5]} Reb8 {[%emt 0:01:14]} 25. Nd4 {[%emt 0:00:56]} Bd7 {[%emt 0:00:10]} 26. Qd3 {[%emt 0:01:45]} Re8 {[%emt 0:02:05]} 27. Nf3 {[%emt 0:01:29]} Qf6 {[%emt 0:02:14]} (27... Bxb2 $11 {remains equal.} 28. Rad1 Ba3) 28. e5 $1 $16 {[%emt 0:00:13]} Qf4 {[%emt 0:00:48]} (28... Qd8 $16) 29. Qxd6 {[%emt 0:00:44]} ({Only move:} 29. cxb5 $1 $18 Bxe5 30. Ra4 (30. Rxa6 Rxa6 31. bxa6 Bxb2 $18)) 29... Rad8 $14 {[%emt 0:00:40][%cal Od7g4]} 30. Qc7 {[%emt 0:00:08]} (30. Rxa6 Bxg4 $1 {[%mdl 512]} 31. Qxc6 Bd7 $17) (30. Rad1 $1 $14 Bxg4 31. Nxg4 Rxd6 32. exd6) 30... Bxe5 {[%emt 0:02:04]} (30... Qe4 $2 31. Nd5 $1 {[%mdl 512]} cxd5 32. Rxe4 dxe4 33. Nxg5 Bxe5 34. Qb7 $18) (30... f5 $1 $11 {keeps the balance.} 31. Red1 (31. Rxa6 $2 fxg4 32. hxg4 Rf8 $19) 31... fxg4 32. Rxd7 gxf3+ 33. Kf1 Rxd7 34. Qxd7 Rxe5 35. Qxc6 Re4) 31. Nxe5 $16 {[%emt 0:00:01]} Qxe5 {[%emt 0:00:01]} 32. Qxe5 {[%emt 0:00:02]} Rxe5 {[%emt 0:00:02]} 33. Rxa6 {[%emt 0:00:26]} ({White should try} 33. Red1 $1 $14) 33... Be8 {[%emt 0:01:15]} 34. Rd1 {[%emt 0:01:14]} Rxd1 {[%emt 0:00:31]} 35. Nxd1 $14 {[%emt 0:00:01][%mdl 4096] Endgame KRB-KRN} Re2 {[%emt 0:00:47]} 36. cxb5 {[%emt 0:01:47]} cxb5 {[%emt 0:00:04]} 37. Rd6 {[%emt 0:00:02] Inhibits Rd2.} (37. Nc3 $16 Rxb2 38. Ra8) 37... Kf8 $11 {[%emt 0:00:22]} 38. Kf3 {[%emt 0:00:19]} Rc2 {[%emt 0:00:38]} 39. Ke3 {[%emt 0:00:06]} Ke7 {[%emt 0:00:34]} 40. Rb6 {[%emt 0:00:49]} Bd7 {[%emt 0:00:39]} 41. Kd3 {[%emt 0:00:14]} (41. b4 $5 {[%cal Re3d3]}) 41... Rc1 {[%emt 0:01:10]} 42. Kd2 {[%emt 0:02:01]} Rc6 {[%emt 0:00:02]} 43. Rb7 {[%emt 0:00:56]} Rd6+ {[%emt 0:00:24]} 44. Ke2 {[%emt 0:00:12]} Kd8 {[%emt 0:01:31]} 45. Nc3 {[%emt 0:00:50]} Kc8 {[%emt 0:00:02]} 46. Ra7 {[%emt 0:00:04] White wants to play Ne4.} Kb8 {[%emt 0:00:01]} 47. Ra5 {[%emt 0:02:29]} Kb7 {[%emt 0:00:23]} 48. Ke3 {[%emt 0:00:17]} (48. Nxb5 Ra6 49. b4 Rxa5 50. Nd6+ Kc6 51. bxa5 Kxd6 $19) (48. Ne4 $14 {might be stronger.} Re6 49. Kd3) 48... Bc6 {[%emt 0:00:16]} 49. b4 {[%emt 0:00:41]} (49. Nxb5 $2 Re6+ 50. Kd4 Kb6 $19) 49... Kb6 {[%emt 0:00:14]} 50. Ra1 {[%emt 0:01:25]} Re6+ {[%emt 0:00:01]} 51. Kd4 {[%emt 0:01:03]} Rf6 {[%emt 0:00:09]} 52. Ke3 {[%emt 0:00:41]} (52. Nd5+ $11 Bxd5 53. Kxd5) 52... Rf3+ {[%emt 0:00:45]} 53. Ke2 {[%emt 0:00:02]} Rxh3 {[%emt 0:00:10]} 54. Rg1 {[%emt 0:00:04] [#]} ({White should play} 54. Rc1 $15) 54... Rf3 $1 $19 {[%emt 0:00:49]} 55. Rg3 {[%emt 0:01:18]} Rf4 {[%emt 0:00:09]} 56. Na2 {[%emt 0:00:05]} (56. b3 $142) 56... Bd7 {[%emt 0:00:36]} 57. Nc3 {[%emt 0:00:29]} Be6 {[%emt 0:00:25] Prevents Nd5+.} (57... Rxg4 58. Rxg4 Bxg4+ 59. Ke3 $15) ({Worse is} 57... Bxg4+ 58. Ke3 Be6 59. Ne4 $17) 58. Ke3 {[%emt 0:00:19]} Rxb4 {[%emt 0:00:06]} 59. Rg1 {[%emt 0:00:14]} Rb3 {[%emt 0:00:35]} ({And not} 59... Rxg4 60. Rxg4 Bxg4 61. Ne4 $17) ({Wrong is} 59... Rxb2 $2 60. Ne4 $19) 60. Kd4 {[%emt 0:00:10]} Rxb2 {[%emt 0:00:13]} 61. Ne4 {[%emt 0:00:05]} Rb4+ {[%emt 0:00:42]} 62. Ke5 {[%emt 0:00:03] [#]} Bxg4 $1 {[%emt 0:00:16][%cal Ob4c4][%mdl 512]} 63. Nxg5 {[%emt 0:00:12]} Be6 $2 {[%emt 0:00:06]} (63... Bf5 $19 {And now ...Rb1 would win.} 64. Nxf7 Re4+ 65. Kd5 Re2) 64. Nxe6 $11 {[%emt 0:00:04] The position is equal.} fxe6 {[%emt 0:00:01]} 65. Rxg6 {[%emt 0:00:01] KR-KR} Rb2 {[%emt 0:00:07] Strongly threatening ...Kc5.} 66. Rxe6+ {[%emt 0:00:07]} Kc5 {[%emt 0:00:00]} 67. f4 {[%emt 0:00:12][%cal Bf2f4,Bf4f5,Bf5f6,Bf6f7][%mdl 32]} b4 {[%emt 0:00:04][%cal Bb5b4,Bb4b3,Bb3b2][%mdl 32]} 68. Kf6 {[%emt 0:00:07]} b3 {[%emt 0:00:19]} 69. Re8 {[%emt 0:00:02]} Ra2 {[%emt 0:00:11] Threatens to win with ...Ra6+.} 70. Rb8 {[%emt 0:00:05]} b2 {[%emt 0:00:35]} 71. Kg5 {[%emt 0:00:22]} Kc4 {[%emt 0:00:08] ( -> ...Ra5+)} 72. f5 {[%emt 0:00:03]} Kc3 {[%emt 0:00:08]} 73. f6 {[%emt 0:00:09] Hoping for f7.} Ra1 {[%emt 0:00:14]} 74. Rxb2 {[%emt 0:00:12]} Kxb2 {[%emt 0:00:02]} 75. f7 {[%emt 0:00:01]} Rf1 {[%emt 0:00:03]} 76. Kg6 {[%emt 0:00:01]} Kc3 {[%emt 0:00:02]} 77. Kg7 {[%emt 0:00:01] And White is the lucky defender.  Weighted Error Value: White=0.22 (precise) /Black=0.14 (very precise)} 1/2-1/2

[Event "Chinese League Div-A Rapid 2022"]
[Site "Fuling,Chongqing"]
[Date "2022.09.11"]
[Round "5.29"]
[White "Zhang, Xiaowen"]
[Black "Zhou, Guijue"]
[Result "0-1"]
[ECO "C02"]
[WhiteElo "2307"]
[BlackElo "2225"]
[Annotator "RC"]
[PlyCount "98"]
[EventDate "2022.09.07"]
[EventType "team-tourn"]
[EventCountry "CHN"]
[SourceTitle "playchess.com"]
[Source "ChessBase"]
[SourceQuality "1"]
[TimeControl "1500+10"]

1. e4 {[%emt 0:00:03]} e6 {[%emt 0:00:02]} 2. d4 {[%emt 0:02:28]} d5 {[%emt 0:00:03]} 3. e5 {[%emt 0:01:01]} c5 {[%emt 0:00:03]} 4. c3 {[%emt 0:00:01]} Qb6 {[%emt 0:00:02]} 5. Nf3 {[%emt 0:01:42]} Bd7 {[%emt 0:00:02]} 6. Be2 {[%emt 0:04:29]} Bb5 {[%emt 0:00:04]} 7. dxc5 {[%emt 0:01:47]} Bxc5 {[%emt 0:00:33]} 8. Bxb5+ {[%emt 0:00:02]} Qxb5 {[%emt 0:00:02]} 9. b4 {[%emt 0:00:09]} Bf8 {[%emt 0:00:50]} 10. a4 {[%emt 0:00:04]} Qd7 {[%emt 0:00:08]} 11. O-O {[%emt 0:00:43]} Nc6 {[%emt 0:01:09]} 12. Nbd2 {[%emt 0:01:36]} Nge7 {[%emt 0:00:16]} 13. Qe2 {[%emt 0:01:42]} h5 {[%emt 0:02:40]} 14. Ba3 {[%emt 0:01:56]} Nf5 {[%emt 0:00:31]} 15. b5 {[%emt 0:00:53]} Na5 {[%emt 0:01:03]} 16. Bb4 {[%emt 0:00:02]} Qc7 {[%emt 0:00:04]} 17. Bxa5 {[%emt 0:00:08]} Qxa5 {[%emt 0:00:04]} 18. c4 {[%emt 0:00:01]} Rd8 {[%emt 0:05:42]} 19. Rfc1 {[%emt 0:03:13]} Be7 {[%emt 0:00:58]} 20. c5 {[%emt 0:01:36]} O-O {[%emt 0:00:23]} 21. Ne1 {[%emt 0:00:32]} g6 {[%emt 0:00:44]} 22. Nd3 {[%emt 0:00:13]} Rc8 {[%emt 0:00:17]} 23. Nb3 {[%emt 0:00:03]} Qc7 {[%emt 0:00:12]} 24. a5 {[%emt 0:00:11]} Qd7 {[%emt 0:01:18]} 25. Nb4 {[%emt 0:00:02]} Kg7 {[%emt 0:01:16]} 26. c6 {[%emt 0:00:54]} bxc6 {[%emt 0:00:03]} 27. Nxc6 {[%emt 0:00:01]} Rc7 {[%emt 0:01:25]} 28. Rc2 {[%emt 0:00:17]} Rb7 {[%emt 0:00:36]} 29. Rac1 {[%emt 0:00:35]} Ba3 {[%emt 0:00:07]} 30. Nc5 {[%emt 0:00:30]} Bxc5 {[%emt 0:00:05]} 31. Rxc5 {[%emt 0:00:01]} Ne7 {[%emt 0:01:49]} 32. Qf3 {[%emt 0:00:16]} f5 {[%emt 0:00:52]} 33. exf6+ {[%emt 0:00:39]} Rxf6 {[%emt 0:00:02]} 34. Qc3 {[%emt 0:00:02]} Qd6 {[%emt 0:00:15]} 35. a6 {[%emt 0:01:16]} Rd7 {[%emt 0:00:33]} 36. Nxe7 {[%emt 0:00:20]} Qxe7 {[%emt 0:00:07]} 37. Rc7 {[%emt 0:00:07]} d4 {[%emt 0:00:37]} 38. Rxd7 {[%emt 0:00:37]} Qxd7 {[%emt 0:00:03]} 39. Qc7 {[%emt 0:00:12]} Rf7 {[%emt 0:00:17]} 40. Qe5+ {[%emt 0:00:02]} Kh7 {[%emt 0:00:10]} 41. Rd1 {[%emt 0:00:47]} Rf5 {[%emt 0:00:46]} 42. Qe4 {[%emt 0:00:14]} Rxb5 {[%emt 0:00:11]} 43. h3 {[%emt 0:00:02]} Rd5 {[%emt 0:00:08]} 44. Rb1 {[%emt 0:00:01]} d3 {[%emt 0:00:17]} 45. Rd1 {[%emt 0:00:04]} d2 {[%emt 0:00:02]} 46. g4 {[%emt 0:00:08]} hxg4 {[%emt 0:00:07]} 47. hxg4 {[%emt 0:00:01]} Qc6 {[%emt 0:00:55]} 48. Qe3 {[%emt 0:00:19]} Qa4 {[%emt 0:00:22]} 49. Qxa7+ {[%emt 0:00:04]} Rd7 {[%emt 0:00:16]} 0-1

[Event "Chinese League Div-A Rapid 2022"]
[Site "Fuling,Chongqing"]
[Date "2022.09.11"]
[Round "5.30"]
[White "Zhang, Lanlin"]
[Black "Chen, Yining"]
[Result "1-0"]
[ECO "C77"]
[WhiteElo "2135"]
[BlackElo "1745"]
[Annotator "NA RC"]
[PlyCount "75"]
[EventDate "2022.09.07"]
[EventType "team-tourn"]
[EventCountry "CHN"]
[SourceTitle "playchess.com"]
[Source "ChessBase"]
[SourceQuality "1"]
[TimeControl "1500+10"]

1. e4 {[%emt 0:00:07]} e5 {[%emt 0:00:04]} 2. Nf3 {[%emt 0:00:02]} Nc6 {[%emt 0:00:00]} 3. Bb5 {[%emt 0:00:01]} a6 {[%emt 0:00:03]} 4. Ba4 {[%emt 0:00:01]} Nf6 {[%emt 0:00:03]} 5. d3 {[%emt 0:00:01]} b5 {[%emt 0:00:04]} 6. Bb3 {[%emt 0:00:01]} Bc5 {[%emt 0:00:02]} 7. Nc3 {[%emt 0:00:01]} h6 {[%emt 0:00:24]} 8. Nd5 {[%emt 0:00:07]} d6 {[%emt 0:00:20]} 9. c3 {[%emt 0:00:02]} O-O {[%emt 0:02:28]} 10. Nxf6+ {[%emt 0:00:02]} Qxf6 {[%emt 0:00:02]} 11. Bd5 {[%emt 0:00:01]} Bd7 {[%emt 0:00:52]} 12. Rg1 {[%emt 0:00:04]} Qe7 {[%emt 0:02:48]} 13. g4 {[%emt 0:00:16]} Kh8 {[%emt 0:01:41]} 14. g5 {[%emt 0:01:26]} f6 {[%emt 0:04:07]} 15. gxh6 {[%emt 0:09:14]} g5 {[%emt 0:00:12]} 16. Qe2 {[%emt 0:00:42]} Qe8 {[%emt 0:01:57]} 17. Bd2 {[%emt 0:00:48]} Be6 {[%emt 0:02:06]} 18. Bxe6 {[%emt 0:04:00]} Qxe6 {[%emt 0:00:02]} 19. h4 {[%emt 0:00:01]} g4 {[%emt 0:04:07]} 20. Nh2 {[%emt 0:00:03]} f5 {[%emt 0:00:02]} 21. exf5 {[%emt 0:00:02]} Rxf5 {[%emt 0:00:37]} 22. Nxg4 {[%emt 0:00:03]} Qf7 {[%emt 0:01:20]} 23. Ne3 {[%emt 0:00:27]} Bxe3 {[%emt 0:00:57]} 24. Bxe3 {[%emt 0:00:13]} Rg8 {[%emt 0:00:38]} 25. Rg5 {[%emt 0:01:08]} Ne7 {[%emt 0:00:31]} 26. Qg4 {[%emt 0:03:18]} Rgxg5 {[%emt 0:02:30]} 27. hxg5 {[%emt 0:00:06]} Ng6 {[%emt 0:00:03]} 28. a4 {[%emt 0:01:00]} Nf4 {[%emt 0:00:52]} 29. Bxf4 {[%emt 0:02:54]} Rxf4 {[%emt 0:00:27]} 30. g6 {[%emt 0:00:10]} Rxg4 {[%emt 0:00:18]} 31. gxf7 {[%emt 0:00:01]} Rf4 {[%emt 0:00:04]} 32. axb5 {[%emt 0:00:01]} Rxf7 {[%emt 0:00:01]} 33. bxa6 {[%emt 0:00:16]} Rf8 {[%emt 0:00:02]} 34. a7 {[%emt 0:00:17]} Ra8 {[%emt 0:00:01]} 35. c4 {[%emt 0:00:12]} Kh7 {[%emt 0:00:11]} 36. Kd2 {[%emt 0:00:01]} Kxh6 {[%emt 0:00:04]} 37. Kc3 {[%emt 0:00:01]} c5 {[%emt 0:00:14]} 38. b4 {[%emt 0:00:02]} 1-0

[Event "Chinese League Div-A Rapid 2022"]
[Site "Fuling,Chongqing"]
[Date "2022.09.12"]
[Round "6.1"]
[White "Lin, Yi"]
[Black "Xu, Yi"]
[Result "1/2-1/2"]
[ECO "D38"]
[WhiteElo "2394"]
[BlackElo "2507"]
[Annotator "ChessBase"]
[PlyCount "37"]
[EventDate "2022.09.07"]
[EventType "team-tourn"]
[EventCountry "CHN"]
[SourceTitle "playchess.com"]
[Source "ChessBase"]
[SourceQuality "1"]
[TimeControl "1500+10"]

1. d4 {[%emt 0:00:02]} Nf6 {[%emt 0:00:01]} 2. c4 {[%emt 0:00:03]} e6 {[%emt 0:00:02]} 3. Nf3 {[%emt 0:00:02]} d5 {[%emt 0:00:02]} 4. Nc3 {[%emt 0:00:03]} Bb4 {[%emt 0:00:02]} 5. Bg5 {[%emt 0:00:03]} h6 {[%emt 0:00:02]} 6. Bxf6 {[%emt 0:00:02]} Qxf6 {[%emt 0:00:03]} 7. e3 {[%emt 0:00:04]} O-O {[%emt 0:00:03]} 8. Rc1 {[%emt 0:00:02]} dxc4 {[%emt 0:00:03]} 9. Bxc4 {[%emt 0:00:03]} c5 {[%emt 0:00:03]} 10. O-O {[%emt 0:00:06]} cxd4 {[%emt 0:00:03]} 11. Nxd4 {[%emt 0:00:03]} Bd7 {[%emt 0:00:19]} 12. Qb3 {[%emt 0:00:11]} Nc6 {[%emt 0:00:29]} 13. Nxc6 {[%emt 0:00:04]} Bxc3 {[%emt 0:00:03]} 14. Rxc3 {[%emt 0:00:06]} Bxc6 {[%emt 0:00:03]} 15. Bb5 {[%emt 0:00:03]} Bd5 {[%emt 0:00:24]} 16. Bc4 {[%emt 0:00:02]} Bc6 {[%emt 0:00:48]} 17. Bb5 {[%emt 0:00:03]} Bd5 {[%emt 0:00:35]} 18. Bc4 {[%emt 0:00:02]} Bc6 {[%emt 0:00:05]} 19. Bb5 {[%emt 0:00:17]} 1/2-1/2

[Event "Chinese League Div-A Rapid 2022"]
[Site "Fuling,Chongqing"]
[Date "2022.09.12"]
[Round "6.2"]
[White "Zhou, Weiqi"]
[Black "Zhang, Zhong"]
[Result "1/2-1/2"]
[ECO "D38"]
[WhiteElo "2597"]
[BlackElo "2617"]
[Annotator "TA"]
[PlyCount "36"]
[EventDate "2022.09.07"]
[EventType "team-tourn"]
[EventCountry "CHN"]
[SourceTitle "playchess.com"]
[Source "ChessBase"]
[SourceQuality "1"]
[TimeControl "1500+10"]

{[%evp 20,36,19,10,20,6,6,6,2,0,0,0,0,0,0,-7,0,0,0]} 1. d4 {[%emt 0:00:03]} Nf6 {[%emt 0:00:08]} 2. c4 {[%emt 0:00:03]} e6 {[%emt 0:00:08]} 3. Nc3 {[%emt 0:00:22]} Bb4 {[%emt 0:00:49]} 4. Nf3 {[%emt 0:00:06]} d5 {[%emt 0:01:29]} 5. Bg5 {[%emt 0:00:24]} h6 {[%emt 0:00:46]} 6. Bxf6 {[%emt 0:00:31]} Qxf6 {[%emt 0:00:09]} 7. e3 {[%emt 0:01:28]} O-O {[%emt 0:00:35]} 8. Rc1 {[%emt 0:00:14]} dxc4 {[%emt 0:01:56]} 9. Bxc4 {[%emt 0:00:07]} c5 {[%emt 0:00:29]} 10. O-O {[%emt 0:01:56]} cxd4 {[%emt 0:01:22]} 11. Nxd4 {[%emt 0:00:38] The position is equal.} Bd7 {[%emt 0:01:00] D38: Queen's Gambit Declined: Ragozin Defence (4 Nf3 Bb4).} (11... Rd8 $5 {[%cal Rb4c3]}) 12. Qb3 {[%emt 0:02:51]} Nc6 {[%emt 0:00:57]} 13. Nxc6 {[%emt 0:00:10]} Bxc3 {[%emt 0:00:06]} 14. Qxc3 {[%emt 0:00:18]} Bxc6 {[%emt 0:00:33]} 15. Qxf6 {[%emt 0:00:09]} gxf6 {[%emt 0:00:03]} 16. Rfd1 {[%emt 0:00:11]} Rfd8 {[%emt 0:00:12] [#]} 17. f4 $146 {[%emt 0:00:11]} ({Predecessor:} 17. f3 f5 18. Kf2 Kg7 19. Be2 Kf6 20. Rxd8 Rxd8 21. Rd1 Rxd1 22. Bxd1 b6 23. a3 {½-½ (37) Giri,A (2780)-Ding,L (2799) chess24.com INT 2021}) 17... Kf8 {[%emt 0:00:09]} 18. Kf2 {[%emt 0:00:14]} Ke7 {[%emt 0:00:07] An interesting draw.  Weighted Error Value: White=0.03 (flawless) /Black=0.04 (flawless)} 1/2-1/2

[Event "Chinese League Div-A Rapid 2022"]
[Site "Fuling,Chongqing"]
[Date "2022.09.12"]
[Round "6.3"]
[White "Xiao, Tong"]
[Black "Lou, Yiping"]
[Result "1/2-1/2"]
[ECO "C67"]
[WhiteElo "2027"]
[BlackElo "2485"]
[Annotator "TA"]
[PlyCount "51"]
[EventDate "2022.09.07"]
[EventType "team-tourn"]
[EventCountry "CHN"]
[SourceTitle "playchess.com"]
[Source "ChessBase"]
[SourceQuality "1"]
[TimeControl "1500+10"]

{[%evp 18,51,19,16,16,7,8,0,9,7,9,-2,6,8,12,0,0,0,0,0,0,0,6,-11,0,0,0,0,0,0,0,0,0,0,0,0]} 1. e4 {[%emt 0:00:02]} e5 {[%emt 0:00:02]} 2. Nf3 {[%emt 0:00:03]} Nc6 {[%emt 0:00:02]} 3. Bb5 {[%emt 0:00:04]} Nf6 {[%emt 0:00:04]} 4. O-O {[%emt 0:00:51][%cal Bh1f1,Bf1e1,Be1e5][%mdl 32]} Nxe4 {[%emt 0:00:10]} 5. Re1 {[%emt 0:00:06]} Nd6 {[%emt 0:00:06]} 6. Nxe5 {[%emt 0:00:44]} Nxe5 {[%emt 0:00:20]} 7. Rxe5+ {[%emt 0:00:08]} Be7 {[%emt 0:00:03]} 8. Bf1 {[%emt 0:00:12]} O-O {[%emt 0:00:08]} 9. d4 {[%emt 0:00:21]} Bf6 {[%emt 0:00:07]} 10. Re1 {[%emt 0:00:03] The position is equal.} Re8 {[%emt 0:00:09] C67: Ruy Lopez: Berlin Defence: 4 0-0 Nxe4.} 11. Rxe8+ {[%emt 0:00:07]} Nxe8 {[%emt 0:00:04]} 12. c3 {[%emt 0:01:34]} d5 {[%emt 0:00:13]} 13. Bd3 {[%emt 0:00:07]} g6 {[%emt 0:00:15]} 14. Bf4 {[%emt 0:00:17]} Ng7 {[%emt 0:00:50]} 15. Nd2 {[%emt 0:00:08][%cal Bb1d2,Bd2f3,Bf3e5][%mdl 32]} c6 {[%emt 0:00:38]} 16. Nf3 {[%emt 0:00:44]} Bf5 {[%emt 0:00:08]} 17. Bxf5 {[%emt 0:00:31]} Nxf5 {[%emt 0:00:03]} 18. Qd2 {[%emt 0:00:17]} Qd7 {[%emt 0:01:53]} 19. Re1 {[%emt 0:02:10]} Re8 {[%emt 0:00:25] [#]} 20. Be5 $146 {[%emt 0:00:34]} ({Predecessor:} 20. Rxe8+ Qxe8 21. g4 Qe4 22. gxf5 Qxf3 23. fxg6 fxg6 24. Qe3 Qxe3 25. Bxe3 Kf7 26. f4 {½-½ (39) Gruenfeld,Y (2432)-Sivuk,V (2579) Israel 2020}) 20... Bxe5 {[%emt 0:00:38]} 21. Nxe5 {[%emt 0:01:33]} Qe7 {[%emt 0:01:52]} 22. Nd3 {[%emt 0:01:13]} Qd8 {[%emt 0:00:26]} 23. a4 {[%emt 0:01:41]} Nd6 {[%emt 0:01:39]} 24. f3 {[%emt 0:00:55]} Re7 {[%emt 0:02:41]} 25. Rxe7 {[%emt 0:01:04]} Qxe7 {[%emt 0:00:02]} 26. Qe1 {[%emt 0:00:06] Not much happened in this game.  Weighted Error Value: White=0.04 (flawless) /Black=0.02 (flawless)} 1/2-1/2